Cogmind - Beta 11 @@@ ROGUE MODE // 2022.04.16 @ 13:03:14 // Winter2019/RPGLIKE Player: Rainynight Result: Destroyed by B-75 Beast with Magnetic Acceleration Cannon Performance ------------- Evolutions (4) 2000 Regions Visited (7) 1400 Robots Destroyed (80) 400 Value Destroyed (2329) 2329 Prototype IDs (4) 80 Alien Tech Used (0) 0 Bonus (321) 321 TOTAL SCORE: 6530 Bonus ------- High Alert Combat Kills 321 Cogmind --------- Core Integrity 0/1050 Matter 259/300 Energy 250/250 System Corruption 0% Temperature Cool (12) Movement Flying (37) Location -6/Extension Parts ------- > --- POWER (2) -------- Light Angular Momentum Engine > --- PROPULSION (3) --- Xenon Bombardment Thruster Nuclear Pulse Thruster > --- UTILITY (5) ------ Structural Scanner Terrain Scanner System Shield System Shield > --- WEAPON (3) ------- Katana > --- INVENTORY (4) ---- Deuterium Engine Advanced Signal Interpreter Heavy EM Shotgun Improved Grenade Launcher Peak State ------------ > --- POWER ------------ Light Angular Momentum Engine > --- PROPULSION ------- Improved Hover Unit VTOL Module Xenon Bombardment Thruster > --- UTILITY ---------- Structural Scanner Terrain Scanner System Shield System Shield > --- WEAPON ----------- Heavy EM Shotgun Improved Grenade Launcher Katana > --- INVENTORY -------- Deuterium Engine Advanced Signal Interpreter Heavy EM Shotgun [Rating: 32] Favorites ----------- Power Deuterium Engine Engine Deuterium Engine Propulsion Aluminum Leg Leg Aluminum Leg Hover Unit Improved Hover Unit Flight Unit Xenon Bombardment Thruster Utility Terrain Scanner Device Terrain Scanner Processor Targeting Computer Hackware System Shield Weapon Heavy EM Shotgun Energy Gun Heavy EM Shotgun Energy Cannon Advanced Beam Cannon Ballistic Gun Assault Rifle Launcher Grenade Launcher Impact Weapon Mace Slashing Weapon Katana Build | -11 -10 -10 -9 -8 -7 -6 -6 ------- Run | Scr Mat Min Mat Mat Fac Fac Ext Slots Evolved 9 | 3 . . 1 2 1 1 1 Power 1 | . . . . 1 . . . Propulsion 2 | 1 . . . 1 . . . Utility 4 | 1 . . . . 1 1 1 Weapon 2 | 1 . . 1 . . . . Parts Attached 60 | 2 5 1 11 33 4 4 . Power 4 | . . . 2 2 . . . Engine 4 | . . . 2 2 . . . Core . | . . . . . . . . Reactor . | . . . . . . . . Propulsion 11 | 1 . . 2 4 2 2 . Treads . | . . . . . . . . Leg 7 | 1 . . 2 4 . . . Wheel . | . . . . . . . . Hover 1 | . . . . . . 1 . Flight 3 | . . . . . 2 1 . Utility 5 | . 3 . . . 1 1 . Device 2 | . 2 . . . . . . Storage . | . . . . . . . . Processor 1 | . 1 . . . . . . Hackware 2 | . . . . . 1 1 . Protection . | . . . . . . . . Artifact . | . . . . . . . . Weapon 40 | 1 2 1 7 27 1 1 . Energy Gun 27 | . . . 5 22 . . . Energy Cannon 1 | . . . . 1 . . . Ballistic Gun 3 | 1 1 . 1 . . . . Ballistic Cannon . | . . . . . . . . Launcher 3 | . . 1 . 1 . 1 . Special Weapon . | . . . . . . . . Impact Weapon 2 | . 1 . 1 . . . . Slashing Weapon 4 | . . . . 3 1 . . Piercing Weapon . | . . . . . . . . Special Melee Weapon . | . . . . . . . . Unidentified Prototypes 4 | . . . . 4 . . . Corrupted Parts 1 | . . . . 1 . . . System Corruption 2 | . . . . 2 . . . Parts Lost 2 | . . . . . . . 2 Power . | . . . . . . . . Propulsion 1 | . . . . . . . 1 Utility . | . . . . . . . . Weapon 1 | . . . . . . . 1 Highest Loss Streak 2 | . . . . . . . 2 To Critical Strikes . | . . . . . . . . Average Slot Usage (%) 92 | . 92 100 100 94 79 78 73 Engine 14 | . 14 14 12 16 12 8 7 Leg 24 | . 28 28 26 29 13 . . Flight 2 | . . . . . 10 17 21 Device 20 | . 13 28 26 20 18 16 15 Hackware 1 | . . . . . 2 13 15 Energy Gun 23 | . 14 14 32 27 15 8 5 Ballistic Gun 1 | . 13 . . . . . . Slashing Weapon 1 | . . . . . 6 8 7 Naked Turns . | . . . . . . . . Heaviest Build 32 | 6 9 10 20 32 32 23 17 Greatest Support 40 | 25 25 25 25 40 40 26 26 Greatest Overweight (x) 1 | . . . . . . 1 . Average Overweight (x) . | . . . . . . . . Largest Inventory Capacity 4 | 2 2 2 2 4 4 4 4 Average Capacity 2 | 2 2 2 2 2 4 4 4 Most Carried 4 | . 2 2 2 3 4 4 4 Average Carried 2 | . 1 2 1 2 3 3 4 Final Capacity 4 | 2 2 2 2 4 4 4 4 Final Carried 4 | . 2 2 2 3 4 4 4 Class Distribution -------------------- 35% | Skirmisher 30% | Scavenger-Skirmisher 13% | Mutant 9% | Scout 5% | Hacker-Scout 5% | Scavenger-Assassin Dominant Class ---------------- Mutant | -10/Materials Mutant | -10/Mines Skirmisher | -9/Materials Skirmisher | -8/Materials Scout | -7/Factory Hacker-Scout | -6/Factory Hacker-Scout | -6/Extension Resources | -11 -10 -10 -9 -8 -7 -6 -6 ----------- Run | Scr Mat Min Mat Mat Fac Fac Ext Matter Collected 947 | 200 49 30 180 433 30 25 . Remotely . | . . . . . . . . Salvage Created 3247 | . 58 56 435 2612 61 25 . Parts 182 | . 2 3 30 141 2 4 . Haulers Intercepted 6 | . 1 . . 5 . . . Recyclers Shooed 3 | . . 1 1 1 . . . Parts Field Recycled . | . . . . . . . . Retrieved Matter . | . . . . . . . . Parts Self-Destructed . | . . . . . . . . Prevented . | . . . . . . . . Kills | -11 -10 -10 -9 -8 -7 -6 -6 ------- Run | Scr Mat Min Mat Mat Fac Fac Ext Combat Hostiles Destroyed 54 | . . 4 11 39 . . . Melee 3 | . . 3 . . . . . Guns 40 | . . . 11 29 . . . AOE 9 | . . . . 9 . . . Classes Destroyed 15 | . 1 2 5 7 . . . Worker 6 | . . . 1 5 . . . Builder 3 | . . . . 3 . . . Hauler 6 | . 1 . . 5 . . . Recycler 8 | . . . 2 5 1 . . Operator 3 | . . . . 2 . 1 . Watcher 2 | . . . 1 1 . . . Swarmer 8 | . . . . 8 . . . Grunt 28 | . . 2 7 19 . . . Brawler 1 | . . . 1 . . . . Duelist 1 | . . . . 1 . . . Sentry 10 | . . . 3 7 . . . Specialist 2 | . . . . 2 . . . Hunter 1 | . . . . 1 . . . Heavy 1 | . . . . 1 . . . Assembled 2 | . . 2 . . . . . Best Kill Streak 10 | . 1 2 6 10 1 1 . Combat Bots Only 7 | . . 2 5 7 . . . Max Kills in Single Turn 4 | . 1 1 1 4 1 1 . Gunslinging 1 | . . . . 1 . . . Exploded 2 | . . . . 2 . . . Melee 1 | . . 1 . . . . . Uniques/NPCs Destroyed . | . . . . . . . . Combat | -11 -10 -10 -9 -8 -7 -6 -6 -------- Run | Scr Mat Min Mat Mat Fac Fac Ext Damage Taken 3497 | . 38 693 235 1344 43 301 843 Core 2853 | . 30 562 191 1093 38 259 680 Absorbed by Shields 9 | . . . . . . 9 . Redirected to Core 2218 | . 30 455 151 859 16 141 566 Core Remaining (%) 72 | 100 . 17 64 93 89 . . Volleys Fired 121 | . 4 3 27 85 . 2 . Largest 3 | . 2 2 3 3 . 1 . Hottest 186 | . 60 70 186 151 . 36 . Shots Fired 297 | . 7 5 58 225 . 2 . Gun 289 | . 7 3 58 221 . . . Cannon . | . . . . . . . . Launcher 8 | . . 2 . 4 . 2 . Special . | . . . . . . . . Kinetic 3 | . 3 . . . . . . Thermal 67 | . . . 52 15 . . . Explosive 8 | . . 2 . 4 . 2 . Electromagnetic 219 | . 4 3 6 206 . . . Robot Hit Streak 39 | . 5 4 16 39 . . . Robot Miss Streak 4 | . . 1 4 4 . . . Penetration Max . | . . . . . . . . Secondary Targets 6 | . . . 1 5 . . . Max Gunslinging Chain 1 | . . . 1 1 . . . Shots Hit Robots 223 | . 5 11 49 156 1 1 . Core Hits 153 | . 1 4 38 109 . 1 . Critical Kills . | . . . . . . . . Critical Parts Destroyed 2 | . . 2 . . . . . Critical Strikes 4 | . . 2 2 . . . . Burn 2 | . . . 2 . . . . Smash 2 | . . 2 . . . . . Melee Attacks 28 | . 1 8 1 1 6 4 7 Impact 10 | . 1 8 1 . . . . Slashing 18 | . . . . 1 6 4 7 Piercing . | . . . . . . . . Sneak Attacks 3 | . . 2 . . 1 . . Combat Hostiles 1 | . . 1 . . . . . Follow-up Attacks . | . . . . . . . . Damage Inflicted 5350 | . 65 332 731 4111 64 47 . Guns 3629 | . 65 22 731 2811 . . . Cannons . | . . . . . . . . Explosions 1322 | . . 26 . 1296 . . . Melee 395 | . . 284 . . 64 47 . Ramming 4 | . . . . 4 . . . Kinetic 23 | . 23 . . . . . . Thermal 2030 | . . . 682 1348 . . . Explosive 120 | . . 26 . 94 . . . Electromagnetic 2778 | . 42 22 49 2665 . . . Impact 284 | . . 284 . . . . . Slashing 111 | . . . . . 64 47 . Piercing . | . . . . . . . . Highest Corruption 6 | . 1 1 . 6 . . . Average Corruption 4 | . 1 1 . 5 . . . Corruption Purged . | . . . . . . . . Corruption Blocked . | . . . . . . . . Effects 38 | . . . . 38 . . . Message Errors 7 | . . . . 7 . . . Matter Fused 6 | . . . . 6 . . . Heat Flow Errors 8 | . . . . 8 . . . Energy Discharges 4 | . . . . 4 . . . Data Loss (minor) 6 | . . . . 6 . . . Data Loss (major) 4 | . . . . 4 . . . Misfires 1 | . . . . 1 . . . Alerts 1 | . . . . 1 . . . Weapon Failures 1 | . . . . 1 . . . Overload Shots . | . . . . . . . . Overflow Damage 179 | . . 94 . 51 34 . . Projectiles . | . . . . . . . . Explosions 51 | . . . . 51 . . . Melee 128 | . . 94 . . 34 . . Knockbacks 1 | . . 1 . . . . . Impact 1 | . . 1 . . . . . Kinetic . | . . . . . . . . Secondary . | . . . . . . . . Self-Inflicted Damage 354 | . . . . 320 . 34 . Shots 7 | . . . . 6 . 1 . Rammed . | . . . . . . . . Targets Rammed 1 | . . . . 1 . . . Kicked 1 | . . . . 1 . . . Crushed . | . . . . . . . . Highest Temperature 357 | . . . 357 216 . . . Average Temperature 73 | . . . 91 46 . . . Received Heat Transfer 765 | . . 21 156 405 . 27 156 Effects 1 | . . . 1 . . . . Matter Decay 1 | . . . 1 . . . . Siege Activations . | . . . . . . . . Robots Corrupted 1 | . . . . 1 . . . Combat Hostiles 1 | . . . . 1 . . . Parts Fried 17 | . 1 . . 16 . . . Impact Corruptions 4 | . . 4 . . . . . Robots Melted . | . . . . . . . . Combat Hostiles . | . . . . . . . . Parts Melted 5 | . . . 4 1 . . . Heat Transferred 3159 | . . . 1539 1620 . . . Parts Sabotaged . | . . . . . . . . Parts Stolen . | . . . . . . . . Parts Stripped . | . . . . . . . . Power Chain Reactions 13 | . . . . 13 . . . Missiles Intercepted . | . . . . . . . . Alert | -11 -10 -10 -9 -8 -7 -6 -6 ------- Run | Scr Mat Min Mat Mat Fac Fac Ext Peak Influence 879 | . 10 81 363 879 559 671 358 Initial 399 | . . 3 31 6 399 273 328 Average 379 | . 4 62 195 520 420 453 343 Maximum Alert Level 3 | . . . 1 3 2 2 1 Low Security (%) 25 | 100 100 100 48 7 . . . Level 1 20 | . . . 51 7 32 42 100 Level 2 47 | . . . . 70 67 57 . Level 3 6 | . . . . 13 . . . Level 4 . | . . . . . . . . Level 5 . | . . . . . . . . High Security . | . . . . . . . . Max Security . | . . . . . . . . Squads Dispatched 16 | . . . 1 8 2 4 1 Investigation 3 | . . . . 1 . 1 1 Extermination . | . . . . . . . . Reinforcement 10 | . . . 1 4 2 3 . Assault . | . . . . . . . . Garrison 3 | . . . . 3 . . . Intercept . | . . . . . . . . Searches Triggered . | . . . . . . . . Construction Impeded 1 | . . . . 1 . . . Haulers Reinforced . | . . . . . . . . Active Scanning Responses . | . . . . . . . . Cargo Convoy Interrupts . | . . . . . . . . Stealth | -11 -10 -10 -9 -8 -7 -6 -6 --------- Run | Scr Mat Min Mat Mat Fac Fac Ext Distress Signals 6 | . . . 3 3 . . . Communications Jammed . | . . . . . . . . Distress Signals . | . . . . . . . . Times Spotted 142 | . . 8 15 56 18 36 9 Peak Tracking Total 14 | . . 4 3 7 11 14 9 Tactical Retreats 12 | . . . . 4 2 6 . Traps | -11 -10 -10 -9 -8 -7 -6 -6 ------- Run | Scr Mat Min Mat Mat Fac Fac Ext Traps Triggered 3 | . 2 . . . . 1 . Indirectly . | . . . . . . . . Trap Hack Attempts . | . . . . . . . . Triggered . | . . . . . . . . Disarmed . | . . . . . . . . Reprogrammed . | . . . . . . . . Reused . | . . . . . . . . Traps Extracted . | . . . . . . . . Installed . | . . . . . . . . Triggered 1 | . . 1 . . . . . Machines | -11 -10 -10 -9 -8 -7 -6 -6 ---------- Run | Scr Mat Min Mat Mat Fac Fac Ext Machines Disabled 7 | . . . . 6 . 1 . Max in Single Turn 3 | . . . . 3 . 1 . Garrison Access 1 | . . . . . 1 . . Machines Sabotaged . | . . . . . . . . Garrisons Compromised . | . . . . . . . . Overloaded Fab Kills . | . . . . . . . . Hacking | -11 -10 -10 -9 -8 -7 -6 -6 --------- Run | Scr Mat Min Mat Mat Fac Fac Ext Machines Accessed 13 | . . . 2 5 2 3 1 Terminals 11 | . . . 2 4 1 3 1 Fabricators . | . . . . . . . . Repair Stations . | . . . . . . . . Recycling Units . | . . . . . . . . Scanalyzers . | . . . . . . . . Garrison Access 2 | . . . . 1 1 . . Total Hacks 29 | . . . 7 11 2 6 3 Successful 7 | . . . 1 3 1 2 . Failed 22 | . . . 6 8 1 4 3 Catastrophic 5 | . . . 2 1 . 2 . Database Lockouts . | . . . . . . . . Manual 16 | . . . 7 4 1 4 . Terminals 26 | . . . 7 9 1 6 3 Fabricators . | . . . . . . . . Repair Stations . | . . . . . . . . Recycling Units . | . . . . . . . . Scanalyzers . | . . . . . . . . Garrison Access 3 | . . . . 2 1 . . Terminal Hacks 5 | . . . 1 3 . 1 . Robot Analysis 1 | . . . . 1 . . . Branch Access Points 2 | . . . . 1 . 1 . Unreport Threat 2 | . . . 1 1 . . . Fabricator Hacks . | . . . . . . . . Repair Station Hacks . | . . . . . . . . Recycling Unit Hacks . | . . . . . . . . Scanalyzer . | . . . . . . . . Garrison Access Hacks 1 | . . . . . 1 . . Seal Access 1 | . . . . . 1 . . Unauthorized Hacks 1 | . . . . . . 1 . Terminals 1 | . . . . . . 1 . Assimilate 1 | . . . . . . 1 . Fabricators . | . . . . . . . . Repair Stations . | . . . . . . . . Recycling Units . | . . . . . . . . Scanalyzers . | . . . . . . . . Garrison Access . | . . . . . . . . Data Cores Recovered 2 | . . . . 1 . 1 . Used 2 | . . . . 1 . 1 . Hacking Detections 8 | . . . 2 2 1 2 1 Full Trace Events 5 | . . . 1 2 . 1 1 Feedback Events . | . . . . . . . . Feedback Blocked . | . . . . . . . . Robot Schematics Acquired . | . . . . . . . . Robots Built . | . . . . . . . . Authchips . | . . . . . . . . Time . | . . . . . . . . Total Robot Build Rating . | . . . . . . . . Part Schematics Acquired . | . . . . . . . . Parts Built . | . . . . . . . . Authchips . | . . . . . . . . Time . | . . . . . . . . Total Part Build Rating . | . . . . . . . . Parts Repaired . | . . . . . . . . Time . | . . . . . . . . Parts Recycled . | . . . . . . . . Recycled Matter . | . . . . . . . . Retrieved Matter . | . . . . . . . . Retrieved Components . | . . . . . . . . Parts Scanalyzed . | . . . . . . . . Part Schematics Acquired . | . . . . . . . . Parts Damaged . | . . . . . . . . Bothacking | -11 -10 -10 -9 -8 -7 -6 -6 ------------ Run | Scr Mat Min Mat Mat Fac Fac Ext Used RIF Installer . | . . . . . . . . Robots Hacked . | . . . . . . . . Non-combat . | . . . . . . . . Combat . | . . . . . . . . Robot Hacks Applied . | . . . . . . . . Relay Couplers Released . | . . . . . . . . Fabnet Peak Effective % . | . . . . . . . . Robots Rewired . | . . . . . . . . Allies Hacked . | . . . . . . . . Hacks Repelled . | . . . . . . . . Allies | -11 -10 -10 -9 -8 -7 -6 -6 -------- Run | Scr Mat Min Mat Mat Fac Fac Ext Total Allies . | . . . . . . . . Largest Group . | . . . . . . . . Highest-Rated Group . | . . . . . . . . Highest-Rated Ally . | . . . . . . . . Total Orders . | . . . . . . . . Ally Attacks . | . . . . . . . . Total Damage . | . . . . . . . . Kills . | . . . . . . . . Allies Corrupted . | . . . . . . . . Allies Melted . | . . . . . . . . Intel | -11 -10 -10 -9 -8 -7 -6 -6 ------- Run | Scr Mat Min Mat Mat Fac Fac Ext Robot Analysis Total 1 | . . . . 1 . . . Derelict Logs Recovered 1 | . . 1 . . . . . Drone Launches . | . . . . . . . . Drone Recoveries . | . . . . . . . . Exploration | -11 -10 -10 -9 -8 -7 -6 -6 ------------- Run | Scr Mat Min Mat Mat Fac Fac Ext Turns Passed 2821 | 12 234 148 449 1401 360 167 50 Spaces Moved 2418 | 8 175 91 261 758 620 401 104 Core . | . . . . . . . . Treads . | . . . . . . . . Legs 1407 | 8 175 91 261 758 114 . . Wheels . | . . . . . . . . Hover . | . . . . . . . . Flight 1011 | . . . . . 506 401 104 Fastest Speed 32 | 120 120 120 120 120 34 32 32 Average Speed 85 | 120 120 120 120 120 53 34 32 Slowest Speed 120 | 120 120 120 120 120 120 114 37 Overloaded Moves . | . . . . . . . . Propulsion Burnouts . | . . . . . . . . Robots Hopped 29 | . . . . . 15 11 3 Cave-ins Triggered . | . . . . . . . . Exploration Rate (%) 27 | 2 29 33 20 66 28 18 26 Regions Visited 7 Branch Regions 2 Pre-discovered Areas . | . . . . . . . . Known Exits Taken 1 | . . . . . . 1 . Unknown Exits Taken 6 | 1 1 1 1 1 1 . . Scrap Searched 1 | . . 1 . . . . . Spaces Dug 21 | . 1 . 1 6 5 8 . Terrain Destroyed 140 | . 1 6 1 107 5 20 . Melee 11 | . 1 . 1 1 5 3 . Projectile . | . . . . . . . . AOE 129 | . . 6 . 106 . 17 . Terrain Rammed . | . . . . . . . . Walls Destroyed . | . . . . . . . . Machines Disabled . | . . . . . . . . Actions | -11 -10 -10 -9 -8 -7 -6 -6 --------- Run | Scr Mat Min Mat Mat Fac Fac Ext Total 2863 | 9 188 110 346 1068 624 410 108 Wait 118 | . . 2 15 95 . 6 . Move 2358 | 7 174 90 260 757 593 378 99 Hop 24 | . . . . . 11 11 2 Pick Up 10 | . 2 . 1 3 3 1 . Fast Attach 29 | 2 3 . 3 17 1 3 . Attach 1 | . . . . . . 1 . Detach 6 | . 1 . 1 1 2 1 . Swap 30 | . 2 1 8 16 3 . . Drop 40 | . 1 . 9 23 5 2 . Fire 121 | . 4 3 27 85 . 2 . Melee 28 | . 1 8 1 1 6 4 7 Ram . | . . . . . . . . Kick 1 | . . . . 1 . . . Crush . | . . . . . . . . Escape Stasis 1 | . . . . . . 1 . Rewire . | . . . . . . . . Trap . | . . . . . . . . Miscellaneous 96 | . . 6 21 69 . . . Route ------- -11/Scrapyard -10/Materials -10/Mines -9/Materials -8/Materials (discovered 3 exits: *Fac x3) -7/Factory -6/Factory (discovered 5 exits: [*Fac] / Low x2 / *Ext x2) -6/Extension (discovered 1 exit: [Fac]) History --------- Turn | Location | Event 1 | -11/Scrapyard | Upgraded with Propulsion slot (x1) 1 | -11/Scrapyard | Upgraded with Utility slot (x1) 1 | -11/Scrapyard | Upgraded with Weapon slot (x1) 1 | -11/Scrapyard | Discovered new exit (range 1) 13 | -11/Scrapyard | Entered Materials 239 | -10/Materials | Discovered new exit (range 5) 247 | -10/Materials | Entered Mines 248 | -10/Mines | Met a Derelict bent on vengeance 280 | -10/Mines | Learned Materials trap positions 312 | -10/Mines | Assembled infested the area 313 | -10/Mines | Build established: Mutant 360 | -10/Mines | Discovered new exit (range 5) 386 | -10/Mines | Core integrity fell below 50% 395 | -10/Mines | Entered Materials 396 | -9/Materials | Loaded intel: 17 trap records 396 | -9/Materials | Core integrity fell below 50% 396 | -9/Materials | Core integrity fell below 20% 397 | -9/Materials | Reached level 2 563 | -9/Materials | Reached level 3 587 | -9/Materials | Upgraded with Weapon slot (x1) 802 | -9/Materials | Discovered new exit (range 14) 844 | -9/Materials | Entered another Materials area 846 | -8/Materials | Reached level 4 916 | -8/Materials | Garrison activated, responded to threat 946 | -8/Materials | Reached level 5 949 | -8/Materials | Core integrity fell below 50% 959 | -8/Materials | Upgraded with Power slot (x1) 959 | -8/Materials | Upgraded with Propulsion slot (x1) 977 | -8/Materials | Destroyed 7 combat bots 1088 | -8/Materials | Discovered new exit (range 12) 1231 | -8/Materials | Reached level 6 1365 | -8/Materials | Build established: Skirmisher 1488 | -8/Materials | Discovered new exit (range 6) 1929 | -8/Materials | Build established: Scavenger-Skirmisher 1952 | -8/Materials | Reached level 7 2000 | -8/Materials | Discovered new exit (range 11) 2126 | -8/Materials | Reached level 8 2245 | -8/Materials | Entered Factory 2247 | -7/Factory | Reached level 9 2247 | -7/Factory | Upgraded with Utility slot (x1) 2602 | -7/Factory | Discovered new exit (range 11) 2605 | -7/Factory | Entered another Factory area 2607 | -6/Factory | Reached level 10 2607 | -6/Factory | Upgraded with Utility slot (x1) 2615 | -6/Factory | Discovered new exit (range 8) 2634 | -6/Factory | Spotted B-75 Beast 2655 | -6/Factory | Identified exit to Lower Caves 2655 | -6/Factory | Identified exit to Extension 2772 | -6/Factory | Entered Extension 2774 | -6/Extension | Reached level 11 2775 | -6/Extension | Upgraded with Utility slot (x1) 2799 | -6/Extension | Spotted B-75 Beast 2800 | -6/Extension | Spotted B-75 Beast 2806 | -6/Extension | Discovered new exit (range 3) 2807 | -6/Extension | Core integrity fell below 50% 2816 | -6/Extension | Core integrity fell below 20% 2822 | -6/Extension | Destroyed by B-75 Beast with Magnetic Acceleration Cannon Last Messages --------------- F008. 02755_ Dropped Imp. Hover Unit. 02756_ Acquired Nuclear Pulse Thruster. 02760_ O-24 Administrator: "IFF HANDSHAKE FAILED. SECURING TERMINAL." 02767_ ALERT: Hostiles spotted, dispatching reinforcements to Terminal F014. 02768_ Knocked back. LOCATION=EXTENSION GOAL=ESCAPE 02774_ Reached level 11. 02775_ Upgraded: Utility Slot (+1) 02775_ Upgraded: Sight Range (+1) 02803_ Knocked back. 02804_ Connecting with Door Terminal... 02804_ ALERT: Suspicious activity at Terminal E001. Dispatching Investigation squad. 02806_ EXIT=FOUND 02811_ VTOL Module destroyed. 02812_ Knocked back. 02819_ Hvy. EM Shotgun destroyed. Map ----- +----------------------------------------------------+ | ?????????????????????????????????????????????????? | | ?????????????????????????????????????????????????? | | ?????????????????????????????????????????????????? | | ?????????????????? ??????????????????????????????? | | ?????????????????? ##????????????????????????????? | | ?????????????????? ##????????????????????????????? | | ??????????????? ?? ##????????????????????????????? | | ???????????????? # ##????????????????????????????? | | ?????#??????????## #########?????????????????????? | | ???#??????????#### ########## ##?????????????????? | | ?????#????????#### ### ## ### ####???????????????? | | ?#????#???#??###"" "" Y "" ""##???????????????? | | ?#????#?????#### "Y" " " ##???????????????? | | #?#??####?????## u ##???????????????? | | ################ Y ########?????????? | | ####### ######## ########?????????? | | A ?????????? | | ??????????? | | ???????????? | | ???????????? | | % ?????????????? | | ################ BB ####?????????????? | | ################ BB ####?#???????????? | | #?##????#?##?### BB% % ####?????????????? | | ?##?###?######## BB ##???????????????? | | ?####?????###### % @ ##?##????????????? | | ??#???####?#########% #"""##########?????????????? | | ####???#?#???####### ## < ###########????????????? | | #??#????###################??#######?????????????? | | | | | | | | | | | | | | | | | | | | | | | | | | | | | | | | | | | | | | | | | | | +----------------------------------------------------+ Best States ------------- Heat Dissipation 79 Energy Generation 37 Energy Capacity 490 Matter Stores 300 Matter Capacity 300 Sight Range 18 Terrain Scan Range 14 Terrain Scan Density 610 Resistance: KI 15 Evasion (%) 63 Targeting Accuracy 5 Defensive Hacking 20 Item Schematics ----------------- None Robot Schematics ------------------ None Fabricated ------------ Nothing Alien Tech Used ----------------- None Achievements -------------- Short-term Sacrifices Challenges ------------ None RPGLIKE | -11 -10 -10 -9 -8 -7 -6 -6 --------- Run | Scr Mat Min Mat Mat Fac Fac Ext Levels Raised 10 | . . . 2 5 1 1 1 XP Earned 18138 | 3000 35 800 2935 7133 1500 1735 1000 XP Spent 17680 | 2950 . . 3040 7490 1400 1100 1700 Upgrades 52 | 9 . . 12 26 2 1 2 Power Slot 1 | . . . . 1 . . . Propulsion Slot 2 | 1 . . . 1 . . . Utility Slot 4 | 1 . . . . 1 1 1 Weapon Slot 2 | 1 . . 1 . . . . Core Integrity 9 | . . . . 9 . . . Heat Dissipation 9 | 1 . . 4 4 . . . Energy Generation 2 | . . . 1 1 . . . Energy Storage 2 | . . . . 2 . . . Mass Support 2 | 1 . . . . 1 . . Inventory Capacity 4 | 2 . . . 2 . . . Sight Range 2 | . . . . 1 . . 1 Terrain Scan Density 6 | . . . 4 2 . . . Ranged Accuracy 4 | 1 . . 2 1 . . . KI Resistance % 3 | 1 . . . 2 . . . Protomatter Created 776 | . . 59 221 496 . . . Integrity Restored 2000 | . . 112 474 1414 . . . Core 1803 | . . 95 474 1234 . . . Parts 197 | . . 17 . 180 . . . Protomatter Decayed 101 | . . 27 63 11 . . . Game ------ Seed GlidesysTrapCoupler Manual? 0 Play Time 00:37:42 Cumulative 90.2 hours Start 2022.04.16 @ 12:26:59 End 2022.04.16 @ 13:03:14 Sessions 1 Manual Loads 0 Difficulty Rogue Special Mode Winter2019/RPGLIKE Game No. 107 Rogue 107 Adventurer 0 Explorer 0 Win Type - Total 3 Types 3/0/0/0/0/0/0/0/0 Lore% 51 Gallery% 57 Achievement% 43 Wizard Run 0 Options --------- ASCII 1 Keyboard 1 Movement Numpad Keybinds 0 Fullscreen 1 Font 18/X11 Map View 76x50 Tactical HUD 1 Map Filters NONE Filters NONE Steam 1 RUN: 0b2a8a38-9af8-405d-a07d-b14a68a94962